[Event "Titled Tuesday Blitz March 07 Early 2023"]
[White "Ljukin, Sergei"]
[Black "Fernandez Siles, Luis"]
[WhiteFideId "14102200"]
[BlackFideId "2209420"]
[WhiteElo "2312"]
[BlackElo "2186"]
[Result "1-0"]
[Round "06"]
[TimeControl "180+2"]
[Date "2023.03.07"]
[WhiteClock "0:00:08"]
[BlackClock "0:00:11"]

1. e4 {[%clk 0:02:55]}  c5 {[%clk 0:02:59]} 2. Nf3 {[%clk 0:02:54]}  Nc6 {[%clk 0:02:59]} 3. d4 {[%clk 0:02:55]}  cxd4 {[%clk 0:03:00]} 4. Nxd4 {[%clk 0:02:55]}  Nf6 {[%clk 0:03:00]} 5. Nc3 {[%clk 0:02:56]}  e5 {[%clk 0:03:01]} 6. Ndb5 {[%clk 0:02:56]}  d6 {[%clk 0:03:01]} 7. Nd5 {[%clk 0:02:57]}  Nxd5 {[%clk 0:03:01]} 8. exd5 {[%clk 0:02:57]}  Nb8 {[%clk 0:03:01]} 9. a4 {[%clk 0:02:57]}  Be7 {[%clk 0:03:01]} 10. Be2 {[%clk 0:02:56]}  O-O {[%clk 0:03:00]} 11. O-O {[%clk 0:02:56]}  f5 {[%clk 0:03:00]} 12. f4 {[%clk 0:02:55]}  Nd7 {[%clk 0:02:57]} 13. Be3 {[%clk 0:02:52]}  a6 {[%clk 0:02:53]} 14. Na3 {[%clk 0:02:51]}  exf4 {[%clk 0:02:49]} 15. Rxf4 {[%clk 0:02:46]}  Bg5 {[%clk 0:02:41]} 16. Rf3 {[%clk 0:02:46]}  Bxe3+ {[%clk 0:02:40]} 17. Rxe3 {[%clk 0:02:46]}  Ne5 {[%clk 0:02:35]} 18. Qd4 {[%clk 0:02:43]}  f4 {[%clk 0:02:31]} 19. Rc3 {[%clk 0:02:39]}  Bd7 {[%clk 0:02:24]} 20. Nc4 {[%clk 0:02:27]}  Qf6 {[%clk 0:02:10]} 21. Rd1 {[%clk 0:02:02]}  Rae8 {[%clk 0:02:03]} 22. Nb6 {[%clk 0:01:49]}  Qg5 {[%clk 0:00:46]} 23. Nxd7 {[%clk 0:01:28]}  Nxd7 {[%clk 0:00:47]} 24. Bf3 {[%clk 0:01:06]}  Ne5 {[%clk 0:00:38]} 25. Rf1 {[%clk 0:00:52]}  Qf6 {[%clk 0:00:36]} 26. Qb4 {[%clk 0:00:47]}  g5 {[%clk 0:00:35]} 27. Qxb7 {[%clk 0:00:39]}  g4 {[%clk 0:00:33]} 28. Be4 {[%clk 0:00:39]}  Re7 {[%clk 0:00:26]} 29. Rc7 {[%clk 0:00:38]}  Rff7 {[%clk 0:00:20]} 30. Rxe7 {[%clk 0:00:36]}  Rxe7 {[%clk 0:00:21]} 31. Qc8+ {[%clk 0:00:27]}  Kg7 {[%clk 0:00:21]} 32. Qf5 {[%clk 0:00:27]}  Qxf5 {[%clk 0:00:21]} 33. Bxf5 {[%clk 0:00:27]}  f3 {[%clk 0:00:21]} 34. gxf3 {[%clk 0:00:20]}  Nxf3+ {[%clk 0:00:20]} 35. Kf2 {[%clk 0:00:19]}  Nd4 {[%clk 0:00:18]} 36. Bd3 {[%clk 0:00:19]}  h5 {[%clk 0:00:16]} 37. Kg3 {[%clk 0:00:15]}  Re3+ {[%clk 0:00:16]} 38. Kg2 {[%clk 0:00:15]}  Nf3 {[%clk 0:00:15]} 39. Rf2 {[%clk 0:00:11]}  Nh4+ {[%clk 0:00:15]} 40. Kf1 {[%clk 0:00:11]}  Ng6 {[%clk 0:00:13]} 41. Bxa6 {[%clk 0:00:11]}  h4 {[%clk 0:00:11]} 42. Bd3 {[%clk 0:00:10]}  g3 {[%clk 0:00:12]} 43. hxg3 {[%clk 0:00:09]}  hxg3 {[%clk 0:00:13]} 44. Re2 {[%clk 0:00:08]}  Rf3+ {[%clk 0:00:12]} 45. Kg2 {[%clk 0:00:08]}  Nf4+ {[%clk 0:00:13]} 46. Kxf3 {[%clk 0:00:08]}  Nxe2 {[%clk 0:00:11]} 47. Kxe2 {[%clk 0:00:08]} 1-0


[Site "https://www.chess.com"]

[Event "Titled Tuesday Blitz March 07 Early 2023"]
[White "Zampronha, Wladimir Camilo"]
[Black "Rottenwohrer Suarez, Juan"]
[WhiteFideId "2103087"]
[BlackFideId "32068182"]
[WhiteElo "2176"]
[BlackElo "2174"]
[Result "1/2-1/2"]
[Round "06"]
[TimeControl "180+2"]
[Date "2023.03.07"]
[WhiteClock "0:00:27"]
[BlackClock "0:00:03"]

1. e4 {[%clk 0:03:00]}  c5 {[%clk 0:02:59]} 2. Nf3 {[%clk 0:03:01]}  g6 {[%clk 0:02:59]} 3. d4 {[%clk 0:03:01]}  cxd4 {[%clk 0:02:59]} 4. Nxd4 {[%clk 0:03:02]}  Nc6 {[%clk 0:02:59]} 5. Nc3 {[%clk 0:03:03]}  Bg7 {[%clk 0:03:00]} 6. Be3 {[%clk 0:03:03]}  Nf6 {[%clk 0:03:00]} 7. Bc4 {[%clk 0:03:04]}  O-O {[%clk 0:03:01]} 8. Bb3 {[%clk 0:03:04]}  d5 {[%clk 0:03:02]} 9. exd5 {[%clk 0:02:56]}  Na5 {[%clk 0:03:02]} 10. Nde2 {[%clk 0:02:50]}  a6 {[%clk 0:02:49]} 11. O-O {[%clk 0:02:49]}  b5 {[%clk 0:02:48]} 12. Bd4 {[%clk 0:02:39]}  Bb7 {[%clk 0:02:47]} 13. Qd2 {[%clk 0:02:37]}  Nxb3 {[%clk 0:01:52]} 14. axb3 {[%clk 0:02:35]}  Nxd5 {[%clk 0:01:52]} 15. Bxg7 {[%clk 0:02:34]}  Kxg7 {[%clk 0:01:53]} 16. Nxd5 {[%clk 0:02:24]}  Qxd5 {[%clk 0:01:53]} 17. Qxd5 {[%clk 0:02:20]}  Bxd5 {[%clk 0:01:53]} 18. Rfd1 {[%clk 0:02:08]}  Be4 {[%clk 0:01:47]} 19. c3 {[%clk 0:02:03]}  Ra7 {[%clk 0:01:35]} 20. b4 {[%clk 0:02:01]}  Rfa8 {[%clk 0:01:20]} 21. Rd4 {[%clk 0:02:00]}  Bc6 {[%clk 0:01:15]} 22. Ra5 {[%clk 0:01:46]}  e5 {[%clk 0:01:07]} 23. Rd6 {[%clk 0:01:44]}  Rd7 {[%clk 0:01:07]} 24. Rxd7 {[%clk 0:01:38]}  Bxd7 {[%clk 0:01:07]} 25. f3 {[%clk 0:01:36]}  f5 {[%clk 0:01:07]} 26. Kf2 {[%clk 0:01:35]}  Kf6 {[%clk 0:01:05]} 27. Nc1 {[%clk 0:01:36]}  Ke6 {[%clk 0:00:40]} 28. Nd3 {[%clk 0:01:35]}  Kd6 {[%clk 0:00:40]} 29. Nc5 {[%clk 0:01:35]}  Bc8 {[%clk 0:00:40]} 30. Ra1 {[%clk 0:01:31]}  Kc6 {[%clk 0:00:36]} 31. Re1 {[%clk 0:01:23]}  a5 {[%clk 0:00:36]} 32. Rxe5 {[%clk 0:01:18]}  axb4 {[%clk 0:00:36]} 33. cxb4 {[%clk 0:01:19]}  Ra2 {[%clk 0:00:36]} 34. Re2 {[%clk 0:01:16]}  Kd5 {[%clk 0:00:27]} 35. Kg3 {[%clk 0:01:16]}  g5 {[%clk 0:00:17]} 36. h4 {[%clk 0:01:11]}  f4+ {[%clk 0:00:17]} 37. Kh2 {[%clk 0:01:11]}  h6 {[%clk 0:00:18]} 38. Re8 {[%clk 0:01:07]}  Bf5 {[%clk 0:00:17]} 39. Rh8 {[%clk 0:01:03]}  gxh4 {[%clk 0:00:03]} 40. Rxh6 {[%clk 0:01:04]}  Rxb2 {[%clk 0:00:04]} 41. Rxh4 {[%clk 0:01:02]}  Rxb4 {[%clk 0:00:02]} 42. Ne4 {[%clk 0:00:58]}  Bxe4 {[%clk 0:00:02]} 43. Rxf4 {[%clk 0:00:58]}  Rd4 {[%clk 0:00:01]} 44. fxe4+ {[%clk 0:00:55]}  Rxe4 {[%clk 0:00:02]} 45. Rf1 {[%clk 0:00:43]}  b4 {[%clk 0:00:02]} 46. Kh3 {[%clk 0:00:43]}  Kc4 {[%clk 0:00:03]} 47. g4 {[%clk 0:00:41]}  b3 {[%clk 0:00:03]} 48. Kh4 {[%clk 0:00:40]}  b2 {[%clk 0:00:04]} 49. Kh5 {[%clk 0:00:38]}  Kb3 {[%clk 0:00:04]} 50. g5 {[%clk 0:00:36]}  Rc4 {[%clk 0:00:05]} 51. Rb1 {[%clk 0:00:30]}  Rc1 {[%clk 0:00:03]} 52. Rxb2+ {[%clk 0:00:30]}  Kxb2 {[%clk 0:00:04]} 53. g6 {[%clk 0:00:28]}  Rg1 {[%clk 0:00:02]} 54. Kh6 {[%clk 0:00:28]}  Kc3 {[%clk 0:00:03]} 55. Kh7 {[%clk 0:00:26]}  Kd4 {[%clk 0:00:03]} 56. g7 {[%clk 0:00:27]}  Ke5 {[%clk 0:00:04]} 57. g8=Q {[%clk 0:00:27]}  Rxg8 {[%clk 0:00:03]} 58. Kxg8 {[%clk 0:00:27]} 1/2-1/2


[Site "https://www.chess.com"]

[Event "Titled Tuesday Blitz March 07 Early 2023"]
[White "Mazurkiewicz, Michal"]
[Black "Mikhaylova, Irina"]
[WhiteFideId "1124943"]
[BlackFideId "4109040"]
[WhiteElo "2054"]
[BlackElo "1966"]
[Result "1-0"]
[Round "06"]
[TimeControl "180+2"]
[Date "2023.03.07"]
[WhiteClock "0:00:14"]
[BlackClock "0:00:26"]

1. e4 {[%clk 0:03:00]}  c5 {[%clk 0:02:59]} 2. Nf3 {[%clk 0:03:00]}  Nc6 {[%clk 0:03:00]} 3. g3 {[%clk 0:03:01]}  g6 {[%clk 0:02:58]} 4. Bg2 {[%clk 0:03:01]}  Bg7 {[%clk 0:02:58]} 5. O-O {[%clk 0:03:01]}  d6 {[%clk 0:02:59]} 6. d3 {[%clk 0:03:02]}  e5 {[%clk 0:02:48]} 7. Nc3 {[%clk 0:03:02]}  Nge7 {[%clk 0:02:48]} 8. Nd2 {[%clk 0:03:02]}  O-O {[%clk 0:02:47]} 9. Nc4 {[%clk 0:03:03]}  Be6 {[%clk 0:02:46]} 10. Nd5 {[%clk 0:03:03]}  Bxd5 {[%clk 0:02:42]} 11. exd5 {[%clk 0:03:04]}  Na5 {[%clk 0:02:28]} 12. Ne3 {[%clk 0:02:56]}  b5 {[%clk 0:02:22]} 13. c3 {[%clk 0:02:47]}  Rc8 {[%clk 0:02:13]} 14. a4 {[%clk 0:02:46]}  b4 {[%clk 0:02:01]} 15. cxb4 {[%clk 0:02:45]}  cxb4 {[%clk 0:02:02]} 16. Bd2 {[%clk 0:02:46]}  Qb6 {[%clk 0:01:58]} 17. Qe1 {[%clk 0:02:45]}  Rb8 {[%clk 0:01:31]} 18. Rc1 {[%clk 0:01:37]}  Rfc8 {[%clk 0:01:00]} 19. Qe2 {[%clk 0:01:33]}  Nb3 {[%clk 0:00:49]} 20. Rc4 {[%clk 0:01:32]}  Nd4 {[%clk 0:00:43]} 21. Qd1 {[%clk 0:01:28]}  a5 {[%clk 0:00:43]} 22. Rxc8+ {[%clk 0:01:19]}  Rxc8 {[%clk 0:00:42]} 23. Nc4 {[%clk 0:01:20]}  Qc7 {[%clk 0:00:40]} 24. Be3 {[%clk 0:01:18]}  Nef5 {[%clk 0:00:40]} 25. g4 {[%clk 0:01:10]}  Nh4 {[%clk 0:00:35]} 26. Bxd4 {[%clk 0:01:07]}  exd4 {[%clk 0:00:33]} 27. Re1 {[%clk 0:01:07]}  Nxg2 {[%clk 0:00:32]} 28. Kxg2 {[%clk 0:01:08]}  Bf6 {[%clk 0:00:31]} 29. Qf3 {[%clk 0:01:07]}  Kg7 {[%clk 0:00:31]} 30. Qg3 {[%clk 0:01:03]}  h6 {[%clk 0:00:30]} 31. Nxd6 {[%clk 0:00:56]}  g5 {[%clk 0:00:19]} 32. Nxc8 {[%clk 0:00:50]}  Qxc8 {[%clk 0:00:20]} 33. Qf3 {[%clk 0:00:47]}  Qc2 {[%clk 0:00:18]} 34. Re2 {[%clk 0:00:47]}  Qxa4 {[%clk 0:00:16]} 35. d6 {[%clk 0:00:42]}  Qd7 {[%clk 0:00:17]} 36. Qg3 {[%clk 0:00:36]}  a4 {[%clk 0:00:16]} 37. h3 {[%clk 0:00:36]}  a3 {[%clk 0:00:17]} 38. bxa3 {[%clk 0:00:36]}  bxa3 {[%clk 0:00:17]} 39. Ra2 {[%clk 0:00:37]}  Qa4 {[%clk 0:00:17]} 40. Qf3 {[%clk 0:00:34]}  Qb3 {[%clk 0:00:17]} 41. Qe2 {[%clk 0:00:31]}  Qd5+ {[%clk 0:00:16]} 42. f3 {[%clk 0:00:24]}  Qxd6 {[%clk 0:00:17]} 43. Qe4 {[%clk 0:00:20]}  Qb4 {[%clk 0:00:15]} 44. Qa8 {[%clk 0:00:16]}  Qb1 {[%clk 0:00:14]} 45. Qxa3 {[%clk 0:00:13]}  Qe1 {[%clk 0:00:14]} 46. Qb2 {[%clk 0:00:09]}  Qe3 {[%clk 0:00:14]} 47. Qe2 {[%clk 0:00:08]}  Qf4 {[%clk 0:00:14]} 48. Ra6 {[%clk 0:00:08]}  Be5 {[%clk 0:00:14]} 49. Kf1 {[%clk 0:00:09]}  Qg3 {[%clk 0:00:14]} 50. Qf2 {[%clk 0:00:09]}  Qf4 {[%clk 0:00:14]} 51. Rc6 {[%clk 0:00:07]}  f6 {[%clk 0:00:12]} 52. Rb6 {[%clk 0:00:07]}  Kg6 {[%clk 0:00:13]} 53. Qe2 {[%clk 0:00:07]}  h5 {[%clk 0:00:13]} 54. Qe4+ {[%clk 0:00:07]}  Qxe4 {[%clk 0:00:14]} 55. fxe4 {[%clk 0:00:08]}  hxg4 {[%clk 0:00:14]} 56. hxg4 {[%clk 0:00:08]}  Bf4 {[%clk 0:00:15]} 57. Rc6 {[%clk 0:00:09]}  Be5 {[%clk 0:00:16]} 58. Kg2 {[%clk 0:00:09]}  Kf7 {[%clk 0:00:16]} 59. Kf3 {[%clk 0:00:10]}  Ke7 {[%clk 0:00:17]} 60. Ra6 {[%clk 0:00:10]}  Kd7 {[%clk 0:00:17]} 61. Ke2 {[%clk 0:00:11]}  Kc7 {[%clk 0:00:17]} 62. Kd1 {[%clk 0:00:11]}  Kb7 {[%clk 0:00:18]} 63. Re6 {[%clk 0:00:11]}  Kc7 {[%clk 0:00:19]} 64. Kc2 {[%clk 0:00:11]}  Kd7 {[%clk 0:00:20]} 65. Ra6 {[%clk 0:00:12]}  Ke7 {[%clk 0:00:21]} 66. Kb3 {[%clk 0:00:12]}  Kf7 {[%clk 0:00:22]} 67. Kc4 {[%clk 0:00:12]}  Kg6 {[%clk 0:00:23]} 68. Kd5 {[%clk 0:00:12]}  Kf7 {[%clk 0:00:23]} 69. Ra7+ {[%clk 0:00:13]}  Kg6 {[%clk 0:00:24]} 70. Ke6 {[%clk 0:00:13]}  Bf4 {[%clk 0:00:24]} 71. Ra8 {[%clk 0:00:12]}  Be5 {[%clk 0:00:24]} 72. Rg8+ {[%clk 0:00:11]}  Kh7 {[%clk 0:00:24]} 73. Kf7 {[%clk 0:00:11]}  Bf4 {[%clk 0:00:23]} 74. Rg6 {[%clk 0:00:12]}  Be5 {[%clk 0:00:23]} 75. Rxf6 {[%clk 0:00:12]}  Bxf6 {[%clk 0:00:24]} 76. Kxf6 {[%clk 0:00:13]}  Kh6 {[%clk 0:00:25]} 77. e5 {[%clk 0:00:13]}  Kh7 {[%clk 0:00:25]} 78. e6 {[%clk 0:00:13]}  Kg8 {[%clk 0:00:26]} 79. e7 {[%clk 0:00:14]} 1-0


[Site "https://www.chess.com"]

[Event "Titled Tuesday Blitz March 07 Early 2023"]
[White "Heinemann, Josefine"]
[Black "Qashashvili, Alexandre"]
[WhiteFideId "12900460"]
[BlackFideId "13600842"]
[WhiteElo "2342"]
[BlackElo "2405"]
[Result "1-0"]
[Round "06"]
[TimeControl "180+2"]
[Date "2023.03.07"]
[WhiteClock "0:01:27"]
[BlackClock "0:01:42"]

1. e4 {[%clk 0:03:00]}  c6 {[%clk 0:03:00]} 2. Nf3 {[%clk 0:02:54]}  d5 {[%clk 0:03:01]} 3. d3 {[%clk 0:02:54]}  dxe4 {[%clk 0:03:01]} 4. dxe4 {[%clk 0:02:55]}  Qxd1+ {[%clk 0:03:01]} 5. Kxd1 {[%clk 0:02:54]}  Bg4 {[%clk 0:03:02]} 6. Be2 {[%clk 0:02:53]}  e6 {[%clk 0:03:02]} 7. Ne1 {[%clk 0:02:53]}  Bxe2+ {[%clk 0:03:00]} 8. Kxe2 {[%clk 0:02:54]}  Nd7 {[%clk 0:03:00]} 9. Be3 {[%clk 0:02:53]}  Bc5 {[%clk 0:02:59]} 10. f3 {[%clk 0:02:52]}  Bxe3 {[%clk 0:03:00]} 11. Kxe3 {[%clk 0:02:53]}  Ngf6 {[%clk 0:02:59]} 12. Nd3 {[%clk 0:02:52]}  O-O-O {[%clk 0:02:59]} 13. Nd2 {[%clk 0:02:53]}  Kc7 {[%clk 0:02:58]} 14. a4 {[%clk 0:02:53]}  h6 {[%clk 0:02:54]} 15. a5 {[%clk 0:02:53]}  a6 {[%clk 0:02:54]} 16. Rhd1 {[%clk 0:02:47]}  g5 {[%clk 0:02:46]} 17. c3 {[%clk 0:02:45]}  Nh5 {[%clk 0:02:44]} 18. g3 {[%clk 0:02:42]}  Ng7 {[%clk 0:02:40]} 19. Nc4 {[%clk 0:02:37]}  f5 {[%clk 0:02:40]} 20. Nce5 {[%clk 0:02:29]}  Nxe5 {[%clk 0:02:39]} 21. Nxe5 {[%clk 0:02:29]}  fxe4 {[%clk 0:02:35]} 22. Kxe4 {[%clk 0:02:23]}  Nf5 {[%clk 0:02:30]} 23. Nf7 {[%clk 0:02:11]}  Nd6+ {[%clk 0:02:27]} 24. Rxd6 {[%clk 0:02:11]}  Rxd6 {[%clk 0:02:28]} 25. Nxh8 {[%clk 0:02:11]}  Rd2 {[%clk 0:02:23]} 26. b4 {[%clk 0:02:04]}  Rxh2 {[%clk 0:02:21]} 27. Nf7 {[%clk 0:02:03]}  Kd7 {[%clk 0:02:20]} 28. Rd1+ {[%clk 0:01:59]}  Ke7 {[%clk 0:02:21]} 29. Ne5 {[%clk 0:01:59]}  h5 {[%clk 0:02:21]} 30. Rd7+ {[%clk 0:01:59]}  Ke8 {[%clk 0:02:21]} 31. Rxb7 {[%clk 0:01:58]}  h4 {[%clk 0:02:22]} 32. gxh4 {[%clk 0:01:58]}  gxh4 {[%clk 0:02:22]} 33. Nxc6 {[%clk 0:01:53]}  h3 {[%clk 0:02:22]} 34. Kf4 {[%clk 0:01:52]}  Rc2 {[%clk 0:02:16]} 35. Ne5 {[%clk 0:01:44]}  h2 {[%clk 0:02:10]} 36. Rh7 {[%clk 0:01:43]}  Kf8 {[%clk 0:02:10]} 37. Kg3 {[%clk 0:01:42]}  Rxc3 {[%clk 0:02:07]} 38. Rxh2 {[%clk 0:01:41]}  Re3 {[%clk 0:02:06]} 39. Nd7+ {[%clk 0:01:36]}  Ke7 {[%clk 0:02:03]} 40. Nc5 {[%clk 0:01:37]}  Ra3 {[%clk 0:01:52]} 41. Nxa6 {[%clk 0:01:34]}  Rb3 {[%clk 0:01:52]} 42. Rc2 {[%clk 0:01:34]}  Kd6 {[%clk 0:01:52]} 43. Rc4 {[%clk 0:01:30]}  e5 {[%clk 0:01:49]} 44. Kg4 {[%clk 0:01:28]}  Kd5 {[%clk 0:01:48]} 45. Re4 {[%clk 0:01:28]}  Ke6 {[%clk 0:01:42]} 46. Nc5+ {[%clk 0:01:27]} 1-0


[Site "https://www.chess.com"]

[Event "Titled Tuesday Blitz March 07 Early 2023"]
[White "Ruge, Edison"]
[Black "Sarkar, Justin"]
[WhiteFideId "4401000"]
[BlackFideId "2010011"]
[WhiteElo "2175"]
[BlackElo "2189"]
[Result "1-0"]
[Round "06"]
[TimeControl "180+2"]
[Date "2023.03.07"]
[WhiteClock "0:00:59"]
[BlackClock "0:00:01"]

1. e4 {[%clk 0:03:00]}  e5 {[%clk 0:02:47]} 2. Nf3 {[%clk 0:03:00]}  Nc6 {[%clk 0:02:46]} 3. Bb5 {[%clk 0:03:00]}  a6 {[%clk 0:02:46]} 4. Ba4 {[%clk 0:03:01]}  Nf6 {[%clk 0:02:45]} 5. Qe2 {[%clk 0:03:02]}  Bc5 {[%clk 0:02:21]} 6. O-O {[%clk 0:02:58]}  O-O {[%clk 0:02:18]} 7. Bxc6 {[%clk 0:02:57]}  dxc6 {[%clk 0:02:16]} 8. h3 {[%clk 0:02:58]}  Re8 {[%clk 0:01:51]} 9. d3 {[%clk 0:02:58]}  Nd7 {[%clk 0:01:37]} 10. Be3 {[%clk 0:02:54]}  Bd6 {[%clk 0:01:35]} 11. Nh2 {[%clk 0:02:49]}  Nf8 {[%clk 0:01:25]} 12. Nd2 {[%clk 0:02:42]}  Ne6 {[%clk 0:01:17]} 13. c3 {[%clk 0:02:40]}  c5 {[%clk 0:01:08]} 14. Rad1 {[%clk 0:02:40]}  Nf4 {[%clk 0:01:01]} 15. Bxf4 {[%clk 0:02:38]}  exf4 {[%clk 0:01:01]} 16. Qh5 {[%clk 0:02:32]}  Qf6 {[%clk 0:00:52]} 17. Nc4 {[%clk 0:02:23]}  Bf8 {[%clk 0:00:46]} 18. e5 {[%clk 0:02:20]}  Qf5 {[%clk 0:00:32]} 19. Qf3 {[%clk 0:02:04]}  Rb8 {[%clk 0:00:26]} 20. d4 {[%clk 0:01:46]}  cxd4 {[%clk 0:00:25]} 21. cxd4 {[%clk 0:01:45]}  Qc2 {[%clk 0:00:21]} 22. Qc3 {[%clk 0:01:36]}  Qxc3 {[%clk 0:00:19]} 23. bxc3 {[%clk 0:01:36]}  c5 {[%clk 0:00:16]} 24. d5 {[%clk 0:01:35]}  b5 {[%clk 0:00:15]} 25. Na5 {[%clk 0:01:31]}  Bd7 {[%clk 0:00:09]} 26. Nf3 {[%clk 0:01:31]}  g5 {[%clk 0:00:04]} 27. Rfe1 {[%clk 0:01:29]}  h6 {[%clk 0:00:03]} 28. Nb3 {[%clk 0:01:24]}  c4 {[%clk 0:00:02]} 29. Nbd4 {[%clk 0:01:23]}  Bc5 {[%clk 0:00:02]} 30. h4 {[%clk 0:01:04]}  Rbd8 {[%clk 0:00:01]} 31. hxg5 {[%clk 0:01:03]}  hxg5 {[%clk 0:00:01]} 32. Nxg5 {[%clk 0:01:03]}  Bg4 {[%clk 0:00:01]} 33. Rd2 {[%clk 0:00:59]} 1-0


[Site "https://www.chess.com"]

[Event "Titled Tuesday Blitz March 07 Early 2023"]
[White "Prieto Aranguren, Alain"]
[Black "Ezat, Mohamed"]
[WhiteFideId "2268906"]
[BlackFideId "10600906"]
[WhiteElo "2209"]
[BlackElo "2386"]
[Result "0-1"]
[Round "06"]
[TimeControl "180+2"]
[Date "2023.03.07"]
[WhiteClock "0:00:21"]
[BlackClock "0:00:14"]

1. e4 {[%clk 0:03:00]}  e5 {[%clk 0:02:30]} 2. Bc4 {[%clk 0:02:58]}  Nf6 {[%clk 0:02:29]} 3. d3 {[%clk 0:02:57]}  c6 {[%clk 0:02:23]} 4. Bb3 {[%clk 0:02:56]}  d5 {[%clk 0:02:22]} 5. Nc3 {[%clk 0:02:55]}  Bb4 {[%clk 0:02:21]} 6. Bd2 {[%clk 0:02:54]}  O-O {[%clk 0:02:16]} 7. Nf3 {[%clk 0:02:53]}  Bg4 {[%clk 0:02:07]} 8. O-O {[%clk 0:02:52]}  Nbd7 {[%clk 0:02:03]} 9. exd5 {[%clk 0:02:30]}  cxd5 {[%clk 0:01:48]} 10. Nxd5 {[%clk 0:02:15]}  Bxd2 {[%clk 0:01:47]} 11. Qxd2 {[%clk 0:02:13]}  Bxf3 {[%clk 0:01:46]} 12. gxf3 {[%clk 0:02:13]}  Nc5 {[%clk 0:01:46]} 13. Nxf6+ {[%clk 0:02:07]}  Qxf6 {[%clk 0:01:44]} 14. Qe3 {[%clk 0:02:06]}  b6 {[%clk 0:01:35]} 15. Kh1 {[%clk 0:02:05]}  Rad8 {[%clk 0:01:34]} 16. Rg1 {[%clk 0:02:04]}  Rd4 {[%clk 0:01:30]} 17. Rg4 {[%clk 0:01:57]}  Rf4 {[%clk 0:01:30]} 18. Rag1 {[%clk 0:01:56]}  g6 {[%clk 0:01:29]} 19. Rxf4 {[%clk 0:01:52]}  exf4 {[%clk 0:01:28]} 20. Qd2 {[%clk 0:01:48]}  Qxb2 {[%clk 0:01:21]} 21. Qxf4 {[%clk 0:01:45]}  Nxb3 {[%clk 0:01:20]} 22. axb3 {[%clk 0:01:36]}  Qxc2 {[%clk 0:01:20]} 23. h4 {[%clk 0:01:26]}  h5 {[%clk 0:00:51]} 24. Qf5 {[%clk 0:01:12]}  Qc6 {[%clk 0:00:32]} 25. Qxh5 {[%clk 0:01:07]}  Qf6 {[%clk 0:00:28]} 26. Qg4 {[%clk 0:01:04]}  Kg7 {[%clk 0:00:27]} 27. Kg2 {[%clk 0:00:56]}  Rh8 {[%clk 0:00:27]} 28. Rh1 {[%clk 0:00:56]}  Rh5 {[%clk 0:00:27]} 29. Kg3 {[%clk 0:00:42]}  Qd6+ {[%clk 0:00:22]} 30. Qf4 {[%clk 0:00:34]}  Qxd3 {[%clk 0:00:22]} 31. Re1 {[%clk 0:00:28]}  Rf5 {[%clk 0:00:18]} 32. Qe4 {[%clk 0:00:26]}  Qxb3 {[%clk 0:00:17]} 33. Qd4+ {[%clk 0:00:26]}  Rf6 {[%clk 0:00:18]} 34. Re3 {[%clk 0:00:21]}  Qb5 {[%clk 0:00:15]} 35. Re4 {[%clk 0:00:20]}  Qf5 {[%clk 0:00:13]} 36. Rf4 {[%clk 0:00:19]}  Qxf4+ {[%clk 0:00:13]} 37. Qxf4 {[%clk 0:00:18]}  Rxf4 {[%clk 0:00:14]} 38. Kxf4 {[%clk 0:00:19]}  a5 {[%clk 0:00:14]} 39. Ke3 {[%clk 0:00:19]}  a4 {[%clk 0:00:14]} 40. Kd4 {[%clk 0:00:19]}  b5 {[%clk 0:00:13]} 41. Kc3 {[%clk 0:00:19]}  Kh6 {[%clk 0:00:13]} 42. Kb4 {[%clk 0:00:20]}  Kh5 {[%clk 0:00:13]} 43. f4 {[%clk 0:00:21]}  Kxh4 {[%clk 0:00:13]} 44. f5 {[%clk 0:00:21]}  gxf5 {[%clk 0:00:13]} 45. f4 {[%clk 0:00:21]}  Kg4 {[%clk 0:00:14]} 0-1


[Site "https://www.chess.com"]

[Event "Titled Tuesday Blitz March 07 Early 2023"]
[White "Vargas Rodriguez, Wilver"]
[Black "Chakravarthi Reddy, M"]
[WhiteFideId "3509672"]
[BlackFideId "25009532"]
[WhiteElo "2238"]
[BlackElo "2201"]
[Result "0-1"]
[Round "06"]
[TimeControl "180+2"]
[Date "2023.03.07"]
[WhiteClock "0:00:03"]
[BlackClock "0:00:05"]

1. e4 {[%clk 0:03:00]}  g6 {[%clk 0:02:58]} 2. h4 {[%clk 0:02:58]}  d5 {[%clk 0:02:54]} 3. e5 {[%clk 0:02:55]}  Bg7 {[%clk 0:02:51]} 4. d4 {[%clk 0:02:52]}  c5 {[%clk 0:02:51]} 5. c3 {[%clk 0:02:50]}  Nc6 {[%clk 0:02:52]} 6. h5 {[%clk 0:02:49]}  cxd4 {[%clk 0:02:51]} 7. hxg6 {[%clk 0:02:48]}  hxg6 {[%clk 0:02:48]} 8. Rxh8 {[%clk 0:02:47]}  Bxh8 {[%clk 0:02:49]} 9. cxd4 {[%clk 0:02:47]}  Qb6 {[%clk 0:02:49]} 10. Nc3 {[%clk 0:02:35]}  Be6 {[%clk 0:02:36]} 11. Nf3 {[%clk 0:02:31]}  f6 {[%clk 0:02:35]} 12. Bd3 {[%clk 0:02:25]}  O-O-O {[%clk 0:02:24]} 13. exf6 {[%clk 0:01:48]}  Bxf6 {[%clk 0:02:23]} 14. Qb3 {[%clk 0:01:34]}  Nxd4 {[%clk 0:02:17]} 15. Qxb6 {[%clk 0:01:33]}  Nxf3+ {[%clk 0:02:12]} 16. gxf3 {[%clk 0:01:34]}  axb6 {[%clk 0:02:13]} 17. Bxg6 {[%clk 0:01:33]}  Bg7 {[%clk 0:01:22]} 18. Bf4 {[%clk 0:01:15]}  Nf6 {[%clk 0:01:17]} 19. O-O-O {[%clk 0:01:07]}  d4 {[%clk 0:01:11]} 20. Nb5 {[%clk 0:01:06]}  Nd5 {[%clk 0:01:10]} 21. Bg3 {[%clk 0:00:54]}  Nb4 {[%clk 0:01:02]} 22. a3 {[%clk 0:00:30]}  Bh6+ {[%clk 0:00:50]} 23. f4 {[%clk 0:00:25]}  Nc6 {[%clk 0:00:50]} 24. Kb1 {[%clk 0:00:20]}  Bc4 {[%clk 0:00:48]} 25. a4 {[%clk 0:00:17]}  Bxb5 {[%clk 0:00:38]} 26. axb5 {[%clk 0:00:18]}  Na7 {[%clk 0:00:37]} 27. Bf5+ {[%clk 0:00:15]}  Kb8 {[%clk 0:00:36]} 28. Bd3 {[%clk 0:00:16]}  Rd5 {[%clk 0:00:31]} 29. Re1 {[%clk 0:00:15]}  Nxb5 {[%clk 0:00:30]} 30. Rxe7 {[%clk 0:00:14]}  Ka7 {[%clk 0:00:30]} 31. Be4 {[%clk 0:00:13]}  Rc5 {[%clk 0:00:25]} 32. Bxb7 {[%clk 0:00:11]}  Rc7 {[%clk 0:00:24]} 33. Rxc7 {[%clk 0:00:10]}  Nxc7 {[%clk 0:00:25]} 34. Be4 {[%clk 0:00:09]}  Bg7 {[%clk 0:00:23]} 35. f5 {[%clk 0:00:09]}  Ne8 {[%clk 0:00:23]} 36. Kc2 {[%clk 0:00:07]}  b5 {[%clk 0:00:23]} 37. Kd3 {[%clk 0:00:08]}  Kb6 {[%clk 0:00:24]} 38. f3 {[%clk 0:00:08]}  Kc5 {[%clk 0:00:24]} 39. Bf2 {[%clk 0:00:09]}  Nd6 {[%clk 0:00:24]} 40. f4 {[%clk 0:00:08]}  Bf6 {[%clk 0:00:21]} 41. b4+ {[%clk 0:00:06]}  Kxb4 {[%clk 0:00:18]} 42. Bxd4 {[%clk 0:00:07]}  Ne8 {[%clk 0:00:12]} 43. Bc6 {[%clk 0:00:06]}  Nd6 {[%clk 0:00:11]} 44. Bxf6 {[%clk 0:00:06]}  Nxf5 {[%clk 0:00:10]} 45. Be5 {[%clk 0:00:05]}  Kc5 {[%clk 0:00:10]} 46. Bd7 {[%clk 0:00:05]}  Ne7 {[%clk 0:00:09]} 47. Ke4 {[%clk 0:00:05]}  b4 {[%clk 0:00:08]} 48. Bg4 {[%clk 0:00:04]}  b3 {[%clk 0:00:08]} 49. Bb2 {[%clk 0:00:03]}  Kd6 {[%clk 0:00:06]} 50. Ba3+ {[%clk 0:00:03]}  Kc6 {[%clk 0:00:05]} 0-1


[Site "https://www.chess.com"]